bitfinex/quotes_SOLUSD_20250414
["timestamp","ask_amount","ask_price","bid_price","bid_amount"]
[1744611985186,6.0601,132.01,131.98,8.62e-05]
[1744611985493,6.0598,132.02,131.98,11.78243817]
[1744611985889,88.9593,132.03,131.99,11.78235197]
[1744611986996,88.9593,132.03,132.0,11.78235197]
[1744611987180,88.9593,132.03,131.99,11.78235197]
[1744611987370,82.9,132.03,131.99,11.78235197]
[1744611987687,88.9593,132.03,132.0,11.78235197]
[1744611988174,88.9593,132.03,131.98,8.62e-05]
[1744611988378,100.74165197,132.03,131.98,11.78243817]
[1744611989288,100.74165197,132.03,131.99,11.78235197]
[1744611990191,100.74165197,132.03,131.98,8.62e-05]
[1744611990375,100.74165197,132.03,131.99,11.78235197]
[1744611991091,82.9,132.03,132.0,11.78235197]
[1744611991796,82.9,132.03,132.01,11.78235197]
[1744611991999,82.9,132.03,132.0,11.78235197]
[1744611992678,88.9593,132.03,132.0,11.78235197]
[1744611993188,88.9593,132.03,131.98,14.7145862]
[1744611993503,88.9593,132.03,131.99,11.78235197]
[1744611993792,88.9593,132.03,131.98,14.7145862]
[1744611993999,88.9593,132.03,131.99,11.78235197]
[1744611995204,100.74165197,132.03,131.99,11.78235197]
[1744611995409,100.74165197,132.03,131.98,20.43563817]
[1744611996704,88.9593,132.03,131.99,11.78235197]
[1744611996905,88.9593,132.03,132.0,11.78235197]
[1744611997497,88.9593,132.03,131.99,11.78235197]
[1744611997701,100.74165197,132.03,131.99,11.78235197]
[1744611998092,100.74165197,132.03,131.98,18.88243817]
[1744611999707,88.9593,132.03,131.99,11.78235197]
[1744612005707,100.74165197,132.03,131.98,18.88243817]
[1744612006006,88.9593,132.03,131.99,11.78235197]
[1744612006386,100.74165197,132.03,131.98,18.88243817]
[1744612006803,100.74165197,132.03,131.98,11.78243817]
[1744612008613,88.9593,132.03,131.99,11.78235197]
[1744612009996,88.9593,132.03,131.98,8.62e-05]
[1744612010201,88.9593,132.03,131.99,11.78235197]
[1744612010697,100.74165197,132.03,131.98,11.78243817]
[1744612011110,11.78235197,132.02,131.98,8.62e-05]
[1744612011506,6.0601,132.01,131.98,8.62e-05]
[1744612012597,6.0601,132.01,131.98,11.78243817]
[1744612013811,82.9,132.03,131.99,11.78235197]
[1744612014501,88.9593,132.03,132.0,11.78235197]
[1744612015815,88.9866,132.09,132.02,11.78235197]
[1744612016015,88.9866,132.09,132.06,11.78235197]
[1744612016200,88.9866,132.09,132.05,11.78235197]
[1744612016408,100.76895197,132.09,132.05,11.78235197]
[1744612016617,11.78235197,132.06,132.0,6.4143]
[1744612016918,11.78235197,132.04,132.0,24.25715197]
[1744612017121,11.78235197,132.05,132.0,11.78235197]
[1744612017927,17.84105197,132.05,132.0,11.78235197]
[1744612018401,17.84105197,132.05,131.99,11.78235197]
[1744612018602,11.78235197,132.04,131.99,11.78235197]
[1744612019309,17.84105197,132.05,132.0,11.78235197]
[1744612019514,17.84105197,132.05,131.99,11.78235197]
[1744612020112,11.78235197,132.03,131.98,11.78243817]
[1744612020707,11.78235197,132.04,131.99,11.78235197]
[1744612020907,32.98675197,132.05,132.0,11.78235197]
[1744612021105,32.98675197,132.05,131.99,11.78235197]
[1744612021106,11.78235197,132.04,131.99,11.78235197]
[1744612021731,94.68235197,132.03,131.98,8.62e-05]
[1744612022824,17.84195197,132.02,131.98,8.62e-05]
[1744612023126,11.78235197,132.01,131.98,8.62e-05]
[1744612023304,11.78235197,131.99,131.98,8.62e-05]
[1744612023506,30.71632397,131.99,131.98,8.62e-05]
[1744612023722,30.85848554,131.99,131.98,8.62e-05]
[1744612023945,1.5435,131.95,131.92,0.063]
[1744612024115,82.9,131.94,131.92,0.063]
[1744612024314,11.78235197,131.93,131.92,0.063]
[1744612024511,94.68235197,131.94,131.92,0.063]
[1744612025008,6.0638,131.93,131.92,0.063]
[1744612026324,17.84615197,131.93,131.92,0.063]
[1744612026826,88.9634,131.94,131.92,0.063]
[1744612027316,94.68235197,131.93,131.92,0.063]
[1744612028132,94.68235197,131.93,131.87,11.78235197]
[1744612028133,82.9,131.92,131.85,11.78235197]
[1744612028442,30.71632397,131.93,131.85,11.78235197]
[1744612028443,11.78235197,131.9,131.85,11.78235197]
[1744612029033,6.0656,131.89,131.85,11.78235197]
[1744612029338,6.0656,131.89,131.84,0.063]
[1744612029339,11.78235197,131.86,131.84,0.063]
[1744612029644,94.68235197,131.85,131.84,0.063]
[1744612030910,82.9,131.83,131.74,46.84030442]
[1744612031115,11.78235197,131.8,131.74,52.91280442]
[1744612031314,11.78235197,131.77,131.74,46.84030442]
[1744612031511,11.78235197,131.77,131.73,11.78235197]
[1744612031711,11.78235197,131.78,131.73,11.78235197]
[1744612031915,82.9,131.79,131.76,11.78235197]
[1744612032136,82.9,131.79,131.75,11.78235197]
[1744612032325,11.78235197,131.77,131.72,11.78235197]
[1744612033124,82.9,131.76,131.72,18.92658398]
[1744612033324,101.82658398,131.76,131.71,21.55247018]
[1744612033525,82.9,131.75,131.71,21.55247018]
[1744612033829,18.92658398,131.74,131.71,2.6258862]
[1744612034014,101.82658398,131.75,131.71,2.6258862]
[1744612034218,18.92658398,131.74,131.71,2.6258862]
[1744612034414,82.9,131.75,131.72,18.92658398]
[1744612034614,82.9,131.75,131.71,2.6258862]
[1744612034814,101.82658398,131.75,131.71,2.6258862]
[1744612035021,107.89908398,131.75,131.71,2.6258862]
[1744612035227,18.92658398,131.74,131.71,2.6258862]
[1744612035448,18.92658398,131.73,131.71,2.6258862]
[1744612035637,101.82658398,131.72,131.71,2.6258862]
[1744612036727,82.9,131.72,131.71,2.6258862]
[1744612036926,101.82658398,131.72,131.71,2.6258862]
[1744612037126,107.89998398,131.72,131.71,2.6258862]
[1744612037326,44.07611755,131.72,131.71,2.6258862]
[1744612039261,24.99998398,131.72,131.71,2.6258862]
[1744612039446,26.04658398,131.73,131.71,2.6258862]
[1744612039754,18.92658398,131.74,131.71,2.6258862]
[1744612040322,24.99788398,131.77,131.72,18.92658398]
[1744612040625,6.0693,131.81,131.76,18.92658398]
[1744612040937,18.92658398,131.78,131.74,18.92658398]
[1744612041140,24.99768398,131.77,131.72,18.92658398]
[1744612041649,24.99738398,131.78,131.73,18.92658398]
[1744612042028,18.92658398,131.77,131.72,18.92658398]
[1744612042250,18.92658398,131.75,131.71,2.6258862]
[1744612043355,6.0725,131.74,131.71,2.6258862]
[1744612044825,88.9725,131.74,131.71,2.6258862]
[1744612045153,82.9,131.74,131.71,21.55247018]
[1744612045348,6.0717,131.76,131.71,2.6258862]
[1744612045538,6.0717,131.76,131.72,18.92658398]
[1744612046054,88.9713,131.77,131.74,18.92658398]
[1744612046351,88.9713,131.77,131.73,18.92658398]
[1744612048952,82.9,131.77,131.75,18.92658398]
[1744612049154,24.99698398,131.79,131.74,18.92658398]
[1744612049844,6.0704,131.79,131.75,18.92658398]
[1744612050037,24.99698398,131.79,131.74,18.92658398]
[1744612050657,6.0704,131.79,131.75,18.92658398]
[1744612050959,88.9699,131.8,131.76,18.92658398]
[1744612052954,82.9,131.8,131.77,18.92658398]
[1744612053340,88.9698,131.8,131.76,18.92658398]
[1744612053545,107.89638398,131.8,131.75,25.17528398]
[1744612054533,107.89638398,131.8,131.75,18.92658398]
[1744612055246,88.9698,131.8,131.76,18.92658398]
[1744612055930,107.89638398,131.8,131.75,18.92658398]
[1744612056764,107.89638398,131.8,131.74,18.92658398]
[1744612057260,100.79375277,131.8,131.74,11.82395277]
[1744612059754,100.79375277,131.8,131.75,11.82395277]
[1744612060059,11.82395277,131.77,131.71,9.7458862]
[1744612060265,11.82395277,131.77,131.72,11.82395277]
[1744612060757,82.9,131.79,131.72,11.82395277]
[1744612060964,11.82395277,131.78,131.73,11.82395277]
[1744612061143,6.0711,131.77,131.73,11.82395277]
[1744612061843,17.89475277,131.78,131.74,11.82395277]
[1744612062043,6.0708,131.78,131.74,11.82395277]
[1744612062358,17.89475277,131.78,131.73,11.82395277]
[1744612062963,6.0708,131.78,131.74,11.82395277]
[1744612063459,17.89475277,131.78,131.73,11.82395277]
[1744612063864,11.82395277,131.77,131.72,11.82395277]
[1744612064864,6.0716,131.76,131.72,11.82395277]
[1744612065743,6.0711,131.78,131.75,11.82395277]
[1744612069675,17.89505277,131.78,131.71,9.7458862]
[1744612069846,11.82395277,131.77,131.72,11.82395277]
[1744612070179,88.9704,131.79,131.75,11.82395277]
[1744612070344,82.9,131.79,131.77,11.82395277]
[1744612071073,88.9703,131.79,131.77,11.82395277]
[1744612073181,82.9,131.82,131.78,11.82395277]
[1744612073473,82.9,131.82,131.8,11.82395277]
[1744612073673,7.7293,131.84,131.8,11.82395277]
[1744612074270,7.7293,131.84,131.81,11.82395277]
[1744612074460,6.0683,131.84,131.81,11.82395277]
[1744612075161,82.9,131.85,131.78,6.0703]
[1744612075162,82.9,131.85,131.82,11.82395277]
[1744612075473,82.9,131.85,131.83,11.82395277]
[1744612075775,82.9,131.85,131.84,11.82395277]
[1744612075965,6.0668,131.87,131.84,11.82395277]
[1744612076559,6.0668,131.87,131.83,11.82395277]
[1744612076784,17.89075277,131.87,131.82,11.82395277]
[1744612076972,11.82395277,131.85,131.77,6.4791]
[1744612077180,94.72395277,131.84,131.79,11.82395277]
[1744612077669,11.82395277,131.83,131.78,11.82395277]
[1744612077877,11.82395277,131.82,131.77,11.82395277]
[1744612078181,6.0702,131.79,131.75,11.82395277]
[1744612078353,17.89415277,131.79,131.75,11.82395277]
[1744612078866,6.0702,131.79,131.75,11.82395277]
[1744612080183,94.72395277,131.81,131.74,6.0724]
[1744612080362,6.0698,131.8,131.76,11.82395277]
[1744612081180,17.89375277,131.8,131.75,11.82395277]
[1744612082888,82.9,131.81,131.79,11.82395277]
[1744612083185,82.9,131.83,131.76,11.82395277]
[1744612083354,82.9,131.83,131.8,11.82395277]
[1744612083678,1.5259,131.85,131.81,11.82395277]
[1744612084063,6.0675,131.85,131.81,11.82395277]
[1744612084374,82.9,131.86,131.83,11.82395277]
[1744612084762,82.9,131.86,131.82,11.82395277]
[1744612084955,82.9,131.86,131.83,11.82395277]
[1744612085453,88.967,131.86,131.83,11.82395277]
[1744612085973,88.967,131.86,131.82,11.82395277]
[1744612086171,100.79095277,131.86,131.81,11.82395277]
[1744612086370,11.82395277,131.85,131.81,11.82395277]
[1744612086572,6.0676,131.85,131.81,11.82395277]
[1744612086780,17.89155277,131.85,131.79,6.07]
[1744612086971,11.82395277,131.84,131.8,11.82395277]
[1744612087170,11.82395277,131.83,131.79,11.82395277]
[1744612087678,11.82395277,131.84,131.79,11.82395277]
[1744612088292,6.0684,131.83,131.79,11.82395277]
[1744612089794,6.0681,131.84,131.8,11.82395277]
[1744612090000,6.0681,131.84,131.81,11.82395277]
[1744612090476,6.0676,131.85,131.81,11.82395277]
[1744612090681,6.0676,131.85,131.82,11.82395277]
[1744612091275,88.9672,131.86,131.82,11.82395277]
[1744612091694,88.9672,131.86,131.81,6.0693]
[1744612091898,88.9672,131.86,131.8,6.0696]
[1744612092098,18.92395277,131.89,131.84,11.82395277]
[1744612092287,11.82395277,131.89,131.84,11.82395277]
[1744612092470,6.0662,131.88,131.84,11.82395277]
[1744612093183,17.89015277,131.88,131.84,11.82395277]
[1744612093375,17.89015277,131.88,131.83,11.82395277]
[1744612094100,6.0662,131.88,131.84,11.82395277]
[1744612097503,82.93,131.9,131.87,11.82395277]
[1744612097704,0.03,131.9,131.89,11.82395277]
[1744612098404,0.03,131.9,131.88,11.82395277]
[1744612099904,0.03,131.9,131.89,11.82395277]
[1744612100293,0.03,131.9,131.89,17.88955277]
[1744612101888,0.03,131.9,131.87,7.6489]
[1744612102188,0.03,131.9,131.88,11.82395277]
[1744612102390,0.03,131.9,131.89,11.82395277]
[1744612102787,0.03,131.92,131.9,6.2363]
[1744612102995,0.03,131.92,131.91,11.82395277]
[1744612104589,0.03,131.92,131.91,17.88865277]
[1744612118114,0.03,131.92,131.91,36.96478634]
[1744612118318,0.03,131.98,131.92,18.79181043]
[1744612118539,0.03,131.98,131.96,11.82395277]
[1744612120037,0.03,131.98,131.97,11.82395277]
[1744612120340,0.03,131.98,131.96,11.82395277]
[1744612121337,0.03,131.98,131.97,11.82395277]
[1744612129315,0.03,131.98,131.95,7.08]
[1744612129542,0.03,131.98,131.95,18.90395277]
[1744612129924,0.03,131.98,131.96,11.82395277]
[1744612131119,0.03,131.98,131.95,18.90395277]
[1744612131642,0.03,131.98,131.96,11.82395277]
[1744612132743,0.03,131.98,131.95,7.08]
[1744612133125,0.03,131.98,131.95,18.90395277]
[1744612133644,0.03,131.98,131.96,11.82395277]
[1744612134737,0.03,131.98,131.95,18.90395277]
[1744612135149,0.03,131.98,131.95,14.62352379]
[1744612135647,0.03,131.98,131.96,7.54352379]
[1744612140655,0.03,131.98,131.97,7.54352379]
[1744612142252,0.03,131.98,131.96,7.54352379]
[1744612142551,0.03,131.98,131.97,7.54352379]
[1744612144232,0.03,132.04,131.97,26.61965736]
[1744612144435,0.03,132.04,132.02,7.54352379]
[1744612146434,0.03,132.04,132.0,7.54352379]
[1744612146957,7.57352379,132.04,131.99,7.54352379]
[1744612147450,6.0601,132.01,131.97,7.54352379]
[1744612147656,13.60362379,132.01,131.96,7.54352379]
[1744612148028,6.0601,132.01,131.97,7.54352379]
[1744612148433,13.60362379,132.01,131.96,7.54352379]
[1744612148664,28.75392379,132.01,131.96,7.54352379]
[1744612152262,7.54352379,132.0,131.94,7.08]
[1744612152563,9.10142379,132.0,131.95,7.54352379]
[1744612153264,6.061,131.99,131.95,7.54352379]
[1744612153762,6.061,131.99,131.96,7.54352379]
[1744612155565,7.54352379,131.97,131.88,305.35929516]
[1744612155858,7.54352379,131.95,131.9,7.54352379]
[1744612156049,7.54352379,131.94,131.89,7.54352379]
[1744612156864,13.60732379,131.93,131.89,7.54352379]
[1744612157047,13.60732379,131.93,131.88,7.54352379]
[1744612157361,6.0634,131.94,131.9,7.54352379]
[1744612157557,7.6209,131.95,131.91,7.54352379]
[1744612157762,16.7117,131.98,131.94,7.54352379]
[1744612157944,6.0619,131.97,131.94,7.54352379]
[1744612158466,6.0619,131.97,131.93,7.54352379]
[1744612159071,6.0619,131.97,131.94,7.54352379]
[1744612159545,1.5579,131.98,131.95,7.54352379]
[1744612159546,7.6195,131.98,131.95,7.54352379]
[1744612160053,7.6195,131.98,131.94,7.54352379]
[1744612160255,15.16302379,131.98,131.94,7.54352379]
[1744612161068,15.16302379,131.98,131.92,7.08]
[1744612161361,7.54352379,131.97,131.92,14.62352379]
[1744612161668,7.6195,131.98,131.94,7.54352379]
[1744612163150,7.6195,131.98,131.95,7.54352379]
[1744612163358,7.6195,131.98,131.94,7.54352379]
[1744612167079,7.6195,131.98,131.95,7.54352379]
[1744612167585,22.7733,131.98,131.93,7.54352379]
[1744612167761,7.54352379,131.94,131.87,6.3767]
[1744612167962,7.54352379,131.93,131.88,7.54352379]
[1744612168481,7.54352379,131.94,131.89,7.54352379]
[1744612169063,7.54352379,131.94,131.9,7.54352379]
[1744612169260,7.54352379,131.95,131.9,7.54352379]
[1744612169496,6.0633,131.94,131.9,7.54352379]
[1744612169778,6.063,131.95,131.91,7.54352379]
[1744612169982,13.60652379,131.95,131.87,6.0665]
[1744612170187,13.60652379,131.95,131.9,7.54352379]
[1744612171974,13.60652379,131.95,131.88,6.0661]
[1744612172180,13.60652379,131.95,131.9,7.54352379]
[1744612173490,6.063,131.95,131.91,7.54352379]
[1744612173691,13.60652379,131.95,131.9,7.54352379]
[1744612173988,6.063,131.95,131.91,7.54352379]
[1744612175207,6.063,131.95,131.92,7.54352379]
[1744612176492,6.0624,131.96,131.92,7.54352379]
[1744612176887,13.60592379,131.96,131.91,7.54352379]
[1744612177087,7.54352379,131.95,131.9,7.54352379]
[1744612178091,6.0633,131.94,131.9,7.54352379]
[1744612180706,13.60682379,131.94,131.89,7.54352379]
[1744612181500,7.54352379,131.93,131.88,7.54352379]
[1744612182095,13.60682379,131.94,131.89,7.54352379]
[1744612183812,6.0633,131.94,131.9,7.54352379]
[1744612188212,6.0624,131.96,131.92,7.54352379]
[1744612188511,13.60592379,131.96,131.91,7.54352379]
[1744612190217,6.0624,131.96,131.93,7.54352379]
[1744612190429,15.16322379,131.98,131.93,7.54352379]
[1744612190589,7.6197,131.98,131.95,7.54352379]
[1744612191086,7.6197,131.98,131.94,7.54352379]
[1744612191797,15.16322379,131.98,131.93,7.54352379]
[1744612192012,7.54352379,131.97,131.92,7.54352379]
[1744612193499,6.0624,131.97,131.93,7.54352379]
[1744612193996,13.60592379,131.97,131.92,7.54352379]
[1744612195119,7.54352379,131.95,131.9,7.54352379]
[1744612195496,6.0633,131.94,131.9,7.54352379]
[1744612197015,6.0629,131.95,131.92,7.54352379]
[1744612197217,6.0626,131.96,131.92,7.54352379]
[1744612198210,6.0621,131.97,131.93,7.54352379]
[1744612200933,1.5379,132.01,131.96,7.54352379]
[1744612201135,6.0607,132.0,131.96,7.54352379]
[1744612201301,6.0607,132.0,131.93,89.66]
[1744612201302,13.60422379,132.0,131.95,7.54352379]
[1744612201509,7.54352379,131.99,131.93,7.06]
[1744612201815,7.54352379,131.99,131.95,7.54352379]
[1744612202335,7.54352379,131.98,131.94,7.54352379]
[1744612202631,6.0607,132.0,131.97,7.54352379]
[1744612203201,6.0607,132.0,131.96,7.54352379]
[1744612203517,7.5982,132.01,131.97,7.54352379]
[1744612203935,7.5982,132.01,131.98,7.54352379]
[1744612205939,0.03,132.04,132.0,7.54352379]
[1744612206111,0.03,132.04,132.02,7.54352379]
[1744612207335,0.03,132.04,132.01,7.54352379]
[1744612208751,0.03,132.04,132.0,7.54352379]
[1744612208953,7.57352379,132.04,131.99,7.54352379]
[1744612209127,7.54352379,132.0,131.95,7.54352379]
[1744612209325,7.54352379,132.0,131.92,107.55971043]
[1744612209326,7.54352379,131.98,131.92,7.06]
[1744612209544,7.54352379,131.98,131.93,7.54352379]
[1744612209846,6.0619,131.97,131.94,7.54352379]
[1744612210757,6.0615,131.98,131.94,7.54352379]
[1744612211230,6.0615,131.98,131.95,11.78805066]
[1744612211547,7.5658,131.99,131.95,11.78805066]
[1744612212444,19.35385066,131.99,131.94,11.78805066]
[1744612213432,11.78805066,131.98,131.93,11.78805066]
[1744612213747,19.35385066,131.99,131.94,11.78805066]
[1744612213948,7.5658,131.99,131.95,11.78805066]
[1744612214326,19.35385066,131.99,131.94,11.78805066]
[1744612214961,7.5658,131.99,131.95,11.78805066]
[1744612215632,6.0607,132.0,131.96,11.78805066]
[1744612217258,7.5644,132.02,131.99,11.78805066]
[1744612217452,6.0592,132.03,132.0,11.78805066]
[1744612218128,6.0592,132.03,131.99,11.78805066]
[1744612218830,0.03,132.04,131.98,6.0614]
[1744612219034,0.03,132.04,132.02,11.78805066]
[1744612219435,0.03,132.04,132.03,11.78805066]
[1744612220235,0.03,132.04,132.02,11.78805066]
[1744612220640,0.03,132.04,132.03,11.78805066]
[1744612221555,0.03,132.04,131.98,19.07613357]
[1744612221763,0.03,132.04,132.01,11.78805066]
[1744612222555,0.03,132.04,132.0,11.78805066]
[1744612223975,0.03,132.04,131.97,88.6618]
[1744612224143,11.78805066,132.02,131.97,11.78805066]
[1744612224649,13.30575066,132.03,131.99,11.78805066]
[1744612225455,6.0596,132.02,131.99,11.78805066]
[1744612225863,6.0593,132.03,132.0,11.78805066]
[1744612226080,0.03,132.04,132.0,11.78805066]
[1744612226081,6.0889,132.04,132.0,11.78805066]
[1744612226677,0.03,132.04,132.01,11.78805066]
[1744612226849,0.03,132.04,132.03,11.78805066]
[1744612227455,0.03,132.04,132.02,11.78805066]
[1744612227673,0.03,132.04,132.01,11.78805066]
[1744612227971,0.03,132.04,132.03,30.86418423]
[1744612228762,0.03,132.04,132.03,11.78805066]
[1744612229877,0.03,132.04,132.03,17.84725066]
[1744612230070,0.03,132.04,132.03,11.78805066]
[1744612231779,0.03,132.04,132.03,17.84725066]
[1744612233894,0.03,132.04,132.03,18.27373537]
[1744612235666,0.03,132.04,132.03,11.78805066]
[1744612236708,0.03,132.04,132.03,17.84725066]
[1744612240299,0.03,132.04,132.03,36.92338423]
[1744612241216,0.03,132.04,132.03,119.52338423]
[1744612242080,0.03,132.04,132.03,100.44725066]
[1744612242281,0.03,132.04,132.03,17.84725066]
[1744612242900,0.03,132.04,132.03,11.78805066]
[1744612249527,0.03,132.04,132.02,11.78805066]
[1744612249691,0.03,132.04,132.03,11.78805066]
[1744612250194,0.03,132.04,132.03,17.84725066]
[1744612251800,0.03,132.04,132.03,36.92338423]
[1744612252208,0.03,132.04,132.03,17.84725066]
[1744612252617,0.03,132.04,132.03,11.78805066]
[1744612253094,0.03,132.04,132.03,17.84725066]
[1744612254433,0.03,132.04,132.03,11.78805066]
[1744612255926,0.03,132.04,132.03,17.84725066]
[1744612257939,0.03,132.04,132.03,18.27373537]
[1744612259331,0.03,132.04,132.03,119.52338423]
[1744612259535,0.03,132.04,132.03,126.56338423]
[1744612260138,0.03,132.04,132.03,89.64]
[1744612260839,0.03,132.04,132.03,101.42805066]
[1744612261047,0.03,132.04,132.03,107.48725066]
[1744612261339,0.03,132.04,132.03,128.14438423]
[1744612262742,0.03,132.06,132.03,143.29238423]
[1744612262944,0.03,132.06,132.05,42.65223489]
[1744612263647,0.03,132.06,132.05,11.78805066]
[1744612264528,0.03,132.06,132.05,17.84635066]
[1744612264730,0.03,132.06,132.05,18.27283537]
[1744612265147,0.03,132.06,132.05,119.52248423]
[1744612265330,0.03,132.06,132.05,131.31053489]
[1744612267126,0.03,132.06,132.05,115.26318736]
[1744612269464,0.03,132.06,132.05,90.12875379]
[1744612269627,0.03,132.06,132.02,7.52875379]
[1744612270537,7.55875379,132.06,132.01,7.52875379]
[1744612271053,0.03,132.06,132.02,7.52875379]
[1744612271851,6.0878,132.06,132.02,7.52875379]
[1744612272560,0.03,132.06,132.03,7.52875379]
[1744612273055,0.03,132.06,132.02,7.52875379]
[1744612273256,0.03,132.06,132.02,11.77406133]
[1744612273436,11.80406133,132.06,132.0,89.64]
[1744612273637,11.80406133,132.06,132.01,11.77406133]
[1744612273958,6.0583,132.05,132.01,11.77406133]
[1744612274258,6.088,132.06,132.02,11.77406133]
[1744612274943,0.03,132.06,132.04,11.77406133]
[1744612275441,0.03,132.06,132.03,11.77406133]
[1744612275643,6.0878,132.06,132.03,11.77406133]
[1744612275854,0.03,132.06,132.03,11.77406133]
[1744612276741,0.03,132.06,132.04,11.77406133]
[1744612277075,0.03,132.06,132.03,11.77406133]
[1744612277366,11.80406133,132.06,132.0,89.64]
[1744612277866,26.03,132.06,132.02,11.77406133]
[1744612278236,32.088,132.06,132.02,11.77406133]
[1744612278441,43.86206133,132.06,132.01,11.77406133]
[1744612278641,11.77406133,132.05,132.0,11.77406133]
[1744612278859,11.77406133,132.04,131.99,11.77406133]
[1744612279272,11.77406133,132.04,131.98,82.6]
[1744612279477,11.77406133,132.03,131.98,11.77406133]
[1744612279649,11.77406133,132.02,131.97,11.83706133]
[1744612280056,17.83416133,132.01,131.97,0.063]
[1744612280754,13.29686133,132.04,131.99,11.77406133]
[1744612280944,1.5228,132.04,132.0,11.77406133]
[1744612281143,11.77406133,132.03,131.99,11.77406133]
[1744612281344,11.77406133,132.03,131.98,11.77406133]
[1744612281759,17.83336133,132.03,131.98,11.77406133]
[1744612281963,11.77406133,131.99,131.97,0.063]
[1744612282341,11.77406133,132.0,131.97,0.063]
[1744612282551,11.77406133,132.01,131.97,0.063]
[1744612283465,11.77406133,132.0,131.97,0.063]
[1744612284263,6.061,131.99,131.97,0.063]
[1744612285177,6.0607,132.0,131.97,11.83706133]
[1744612285473,6.0607,132.0,131.97,0.063]
[1744612286579,17.83426133,132.01,131.97,0.063]
[1744612287581,11.77406133,132.0,131.97,0.063]
[1744612289685,11.77406133,132.01,131.97,0.063]
[1744612290687,17.83446133,132.01,131.97,0.063]
[1744612290859,6.0604,132.01,131.97,0.063]
[1744612291273,1.5228,132.04,131.98,11.77406133]
[1744612291579,13.29686133,132.04,131.99,11.77406133]
[1744612292476,6.0592,132.03,131.99,11.77406133]
[1744612293172,19.35576133,132.04,131.99,17.83506133]
[1744612293378,0.03,132.06,132.03,11.77406133]
[1744612293580,6.0878,132.06,132.03,11.77406133]
[1744612293876,0.03,132.06,132.05,11.77406133]
[1744612294386,0.03,132.06,132.05,42.62425623]
[1744612294608,0.03,132.06,132.05,48.68255623]
[1744612296881,0.03,132.09,132.08,26.0]
[1744612297093,0.03,132.09,132.08,127.41406133]
[1744612297468,0.03,132.12,132.11,45.07613357]
[1744612297766,0.03,132.15,132.14,26.0]
[1744612297978,0.03,132.18,132.14,75.66425623]
[1744612298185,0.03,132.18,132.16,30.8501949]
[1744612299091,0.03,132.18,132.16,11.77406133]
[1744612301294,0.03,132.18,132.16,36.9033949]
[1744612301682,0.03,132.18,132.16,17.82726133]
[1744612301881,0.03,132.18,132.16,24.86726133]
[1744612302684,0.03,132.18,132.16,107.46726133]
[1744612302890,0.03,132.18,132.16,126.5433949]
[1744612303079,0.03,132.18,132.16,144.66365623]
[1744612303487,0.03,132.18,132.17,30.8501949]
[1744612304197,0.03,132.18,132.17,42.62425623]
[1744612304508,0.03,132.18,132.17,30.8501949]
[1744612305482,0.03,132.18,132.16,82.6]
[1744612305683,0.03,132.18,132.17,11.77406133]
[1744612307008,0.03,132.18,132.16,18.81406133]
[1744612307407,0.03,132.18,132.15,11.77406133]
[1744612308588,0.03,132.18,132.15,17.82766133]
[1744612309492,0.03,132.18,132.16,11.77406133]
[1744612309695,0.03,132.18,132.17,11.77406133]
[1744612310909,0.03,132.18,132.16,11.77406133]
[1744612311286,0.03,132.18,132.17,11.77406133]
[1744612312512,0.03,132.18,132.17,17.82686133]
[1744612314410,0.03,132.18,132.17,131.27705623]
[1744612316397,0.03,132.18,132.17,132.84555623]
[1744612318692,0.03,132.22,132.17,147.97755623]
[1744612318892,0.03,132.22,132.21,11.77406133]
[1744612319105,0.03,132.22,132.21,18.79406133]
[1744612319900,0.03,132.22,132.21,7.02]
[1744612320310,0.03,132.22,132.21,18.79406133]
[1744612321019,0.03,132.22,132.21,7.02]
[1744612321594,0.03,132.22,132.21,18.79406133]
[1744612321798,0.03,132.22,132.21,24.84496133]
[1744612322094,0.03,132.23,132.21,138.29515623]
[1744612322409,0.03,132.24,132.22,42.62425623]
[1744612322592,0.03,132.24,132.23,29.59812266]
[1744612322798,0.03,132.27,132.24,19.07613357]
[1744612322998,0.03,132.27,132.26,11.77406133]
[1744612323200,0.03,132.27,132.26,101.39406133]
[1744612323917,0.03,132.27,132.26,126.5187949]
[1744612325227,0.03,132.27,132.26,120.4701949]